bitfinex/quotes_BTCUSD_20230107
["timestamp","ask_amount","ask_price","bid_price","bid_amount"]
[1673114183993,0.83862966,16944.0,16943.0,1.11895227]
[1673114184564,0.83862966,16944.0,16943.0,0.62797527]
[1673114185941,0.83862966,16944.0,16943.0,1.11895227]
[1673114186459,0.83862966,16944.0,16943.0,0.62797527]
[1673114186974,0.83862966,16944.0,16943.0,1.11895227]
[1673114187987,0.83862966,16944.0,16943.0,0.62797527]
[1673114188756,0.83862966,16944.0,16943.0,1.11895227]
[1673114194046,0.83862966,16944.0,16943.0,0.62797527]
[1673114194557,0.83862966,16944.0,16943.0,1.11895227]
[1673114195735,0.83862966,16944.0,16943.0,0.62797527]
[1673114196732,0.83862966,16944.0,16943.0,1.11895227]
[1673114197771,0.83862966,16944.0,16943.0,0.62797527]
[1673114199000,0.83862966,16944.0,16943.0,1.11895227]
[1673114199516,0.83862966,16944.0,16943.0,0.62797527]
[1673114200004,0.83862966,16944.0,16943.0,1.11895227]
[1673114200257,0.83862966,16944.0,16943.0,0.62797527]
[1673114201278,0.83862966,16944.0,16943.0,1.11895227]
[1673114201776,0.83862966,16944.0,16943.0,0.62797527]
[1673114202541,0.83862966,16944.0,16943.0,1.11895227]
[1673114203042,0.83862966,16944.0,16943.0,0.62797527]
[1673114209012,1.09203495,16944.0,16943.0,0.62797527]
[1673114209273,1.44635242,16944.0,16943.0,0.62797527]
[1673114209509,1.44637217,16944.0,16943.0,0.62797527]
[1673114209771,0.48434995,16944.0,16943.0,0.62797527]
[1673114212258,0.83870711,16944.0,16943.0,1.11895227]
[1673114212779,0.83870711,16944.0,16943.0,0.62797527]
[1673114213561,0.48434995,16944.0,16943.0,0.62797527]
[1673114213825,0.83872297,16944.0,16943.0,0.62797527]
[1673114214147,0.48434995,16944.0,16943.0,0.62797527]
[1673114217480,1.08434995,16944.0,16943.0,0.62790367]
[1673114217741,0.48434995,16944.0,16943.0,0.62790367]
[1673114227043,0.48434995,16944.0,16943.0,1.11888067]
[1673114227297,0.48410995,16944.0,16943.0,1.11888067]
[1673114227551,0.48410995,16944.0,16943.0,0.62790367]
[1673114228325,0.48410995,16944.0,16943.0,1.11888067]
[1673114228860,0.48410995,16944.0,16943.0,0.62790367]
[1673114229388,0.48410995,16944.0,16943.0,1.11888067]
[1673114229916,0.48410995,16944.0,16943.0,0.62790367]
[1673114231197,0.48410995,16944.0,16943.0,1.11888067]
[1673114231448,0.83849304,16944.0,16943.0,1.11888067]
[1673114231665,0.83849304,16944.0,16943.0,0.62790367]
[1673114231947,0.48410995,16944.0,16943.0,0.62790367]
[1673114232188,0.83848961,16944.0,16943.0,1.11888067]
[1673114232950,0.48410995,16944.0,16943.0,1.11888067]
[1673114233466,0.48410995,16944.0,16943.0,0.62790367]
[1673114234733,0.83848879,16944.0,16943.0,1.11888067]
[1673114235252,0.48410995,16944.0,16943.0,0.62790367]
[1673114236791,0.48410995,16944.0,16943.0,1.11888067]
[1673114237300,0.48379828,16944.0,16943.0,0.62790367]
[1673114243725,0.48379828,16944.0,16943.0,1.11888067]
[1673114244221,0.48379828,16944.0,16943.0,0.62790367]
[1673114244732,0.48379828,16944.0,16943.0,1.11888067]
[1673114247033,0.48379828,16944.0,16943.0,0.62790367]
[1673114248077,0.48379828,16944.0,16943.0,1.11888067]
[1673114249105,0.48379828,16944.0,16943.0,0.62790367]
[1673114249829,0.83817397,16944.0,16943.0,0.62790367]
[1673114250856,0.48389828,16944.0,16943.0,0.62790367]
[1673114254690,0.48389828,16944.0,16943.0,1.11888067]
[1673114254948,0.83827423,16944.0,16943.0,1.11888067]
[1673114255265,0.48389828,16944.0,16943.0,0.62790367]
[1673114255967,0.48389828,16944.0,16943.0,1.11888067]
[1673114256467,0.48389828,16944.0,16943.0,0.62790367]
[1673114257457,0.83827346,16944.0,16943.0,0.62790367]
[1673114257707,0.83827346,16944.0,16943.0,1.11888067]
[1673114258245,0.83827346,16944.0,16943.0,0.62790367]
[1673114258761,0.83827238,16944.0,16943.0,0.62790367]
[1673114259789,0.48389828,16944.0,16943.0,0.62790367]
[1673114260297,0.48379828,16944.0,16943.0,0.62790367]
[1673114260565,0.48379828,16944.0,16943.0,0.62778695]
[1673114262101,0.83817836,16944.0,16943.0,1.11876395]
[1673114262622,0.83817836,16944.0,16943.0,0.62778695]
[1673114263391,0.83817836,16944.0,16943.0,1.11876395]
[1673114264424,0.83817836,16944.0,16943.0,0.62778695]
[1673114265415,0.83817836,16944.0,16943.0,1.11876395]
[1673114266186,0.83817836,16944.0,16943.0,0.62778695]
[1673114267961,0.83817836,16944.0,16943.0,1.11876395]
[1673114268476,0.83817836,16944.0,16943.0,0.62778695]
[1673114269531,0.83817836,16944.0,16943.0,1.11876395]
[1673114269776,0.83817836,16944.0,16943.0,0.62778695]
[1673114271564,0.83798999,16944.0,16943.0,0.62778695]
[1673114271797,0.48360991,16944.0,16943.0,0.62778695]
[1673114274489,0.48340374,16944.0,16943.0,0.62778695]
[1673114279180,0.83776813,16944.0,16943.0,0.62778695]
[1673114281613,0.48340374,16944.0,16943.0,0.62778695]
[1673114283416,1.09108874,16944.0,16943.0,0.62778695]
[1673114283945,0.48340374,16944.0,16943.0,0.62778695]
[1673114285187,1.09108874,16944.0,16943.0,0.62778695]
[1673114285739,0.48340374,16944.0,16943.0,0.62778695]
[1673114290773,1.09108874,16944.0,16943.0,0.62778695]
[1673114291287,0.48340374,16944.0,16943.0,0.62778695]
[1673114294823,1.09108874,16944.0,16943.0,0.62778695]
[1673114295076,0.48340374,16944.0,16943.0,0.62778695]
[1673114296980,0.48340374,16944.0,16943.0,0.03757295]
[1673114297231,0.71622837,16944.0,16943.0,0.03757295]
[1673114299344,1.24768622,16944.0,16943.0,0.03757295]
[1673114299660,1.84768622,16944.0,16943.0,0.03745875]
[1673114300126,2.45537122,16944.0,16943.0,0.03745875]
[1673114300397,1.84768622,16944.0,16943.0,0.03745875]
[1673114300880,2.45537122,16944.0,16943.0,0.03745875]
[1673114301403,1.84768622,16944.0,16943.0,0.03745875]
[1673114302181,1.31622837,16944.0,16943.0,0.03745875]
[1673114302440,0.71622837,16944.0,16943.0,0.03745875]
[1673114302690,0.04057969,16944.0,16943.0,0.03991762]
[1673114302944,0.04057969,16944.0,16943.0,0.03745875]
[1673114303194,0.12592969,16944.0,16943.0,0.03745875]
[1673114304407,0.71622837,16944.0,16943.0,0.03745875]
[1673114306191,1.32391337,16944.0,16943.0,0.03745875]
[1673114306701,1.88272115,16944.0,16943.0,0.03745875]
[1673114306964,2.414179,16944.0,16943.0,0.03745875]
[1673114307243,1.82388032,16944.0,16943.0,0.03745875]
[1673114307945,1.21619532,16944.0,16943.0,0.03745875]
[1673114308197,0.68473747,16944.0,16943.0,0.03745875]
[1673114309481,1.29242247,16944.0,16943.0,0.03745875]
[1673114310823,0.68473747,16944.0,16943.0,0.03745875]
[1673114312345,1.29242247,16944.0,16943.0,0.03745875]
[1673114312613,1.88272115,16944.0,16943.0,0.03745875]
[1673114312874,0.68473747,16944.0,16943.0,0.03758168]
[1673114313394,0.68473747,16944.0,16943.0,0.03745875]
[1673114314181,1.27503615,16944.0,16943.0,0.03745875]
[1673114314436,1.88272115,16944.0,16943.0,0.03745875]
[1673114315705,1.27503615,16944.0,16943.0,0.03745875]
[1673114315960,1.88272115,16944.0,16943.0,0.03745875]
[1673114316205,1.27503615,16944.0,16943.0,0.03745875]
[1673114316712,0.68473747,16944.0,16943.0,0.03745875]
[1673114317760,1.29242247,16944.0,16943.0,0.03745875]
[1673114318012,1.88272115,16944.0,16943.0,0.03745875]
[1673114319458,1.88272115,16944.0,16943.0,0.03758168]
[1673114319712,1.27503615,16944.0,16943.0,0.03758168]
[1673114319991,0.68473747,16944.0,16943.0,0.03745875]
[1673114320769,1.27503615,16944.0,16943.0,0.03745875]
[1673114321029,0.68473747,16944.0,16943.0,0.03745875]
[1673114321870,1.87503615,16944.0,16943.0,0.03738028]
[1673114324383,2.48272115,16944.0,16943.0,0.03738028]
[1673114326884,3.014179,16944.0,16943.0,0.03738028]
[1673114327130,2.42388032,16944.0,16943.0,0.03738028]
[1673114327387,1.82388032,16944.0,16943.0,0.03738028]
[1673114328145,1.8235708,16944.0,16943.0,0.03738028]
[1673114330707,1.2158858,16944.0,16943.0,0.03738028]
[1673114331215,1.8235708,16944.0,16943.0,0.03738028]
[1673114334755,2.41386948,16944.0,16943.0,0.03738028]
[1673114341270,2.40809351,16944.0,16943.0,0.03738028]
[1673114345352,1.21010983,16944.0,16943.0,0.03738028]
[1673114345573,1.80040851,16944.0,16943.0,0.03738028]
[1673114346810,1.80040851,16944.0,16943.0,0.03983915]
[1673114347074,1.80040851,16944.0,16943.0,0.03738028]
[1673114347289,1.21010983,16944.0,16943.0,0.03738028]
[1673114348087,1.80040851,16944.0,16943.0,0.03738028]
[1673114348301,2.40809351,16944.0,16943.0,0.03738028]
[1673114349343,1.80040851,16944.0,16943.0,0.03738028]
[1673114350347,1.80040851,16944.0,16943.0,0.03728849]
[1673114355215,1.21010983,16944.0,16943.0,0.03728849]
[1673114355467,1.81010983,16944.0,16943.0,0.03728849]
[1673114355714,2.40040851,16944.0,16943.0,0.03728849]
[1673114355923,3.00809351,16944.0,16943.0,0.03728849]
[1673114358182,2.40040851,16944.0,16943.0,0.03728849]
[1673114359196,3.00809351,16944.0,16943.0,0.03728849]
[1673114359701,2.40040851,16944.0,16943.0,0.03728849]
[1673114360203,1.80040851,16944.0,16943.0,0.03728849]
[1673114360448,1.21010983,16944.0,16943.0,0.03728849]
[1673114363030,2.40040851,16944.0,16943.0,0.03728849]
[1673114363265,3.00809351,16944.0,16943.0,0.03728849]
[1673114366680,2.40809351,16944.0,16943.0,0.03728849]
[1673114368259,2.40798425,16944.0,16943.0,0.03728849]
[1673114370864,1.80029925,16944.0,16943.0,0.03728849]
[1673114372472,1.21000057,16944.0,16943.0,0.03728849]
[1673114372984,1.12465057,16944.0,16943.0,0.03728849]
[1673114375609,1.71494925,16944.0,16943.0,0.03728849]
[1673114375769,2.32263425,16944.0,16943.0,0.03728849]
[1673114382180,2.3813554,16944.0,16943.0,0.03728849]
[1673114382416,3.56945713,16944.0,16943.0,0.03728849]
[1673114382684,2.96177213,16944.0,16943.0,0.03728849]
[1673114382917,3.56945713,16944.0,16943.0,0.03728849]
[1673114383190,2.97927813,16944.0,16943.0,0.03728849]
[1673114384623,2.3813554,16944.0,16943.0,0.03728849]
[1673114384876,1.7736704,16944.0,16943.0,0.03728849]
[1673114387945,1.1834914,16944.0,16943.0,0.03728849]
[1673114392977,1.1834914,16944.0,16943.0,0.03721492]
[1673114393233,1.7834914,16944.0,16943.0,0.03721492]
[1673114393481,2.3911764,16944.0,16943.0,0.03721492]
[1673114394443,1.7834914,16944.0,16943.0,0.03721492]
[1673114395427,2.3911764,16944.0,16943.0,0.03721492]
[1673114397063,1.7834914,16944.0,16943.0,0.03721492]
[1673114398220,2.31487109,16944.0,16943.0,0.03721492]
[1673114398454,2.3148709,16944.0,16943.0,0.03721492]
[1673114401420,2.9225559,16944.0,16943.0,0.03721492]
[1673114401916,2.3148709,16944.0,16943.0,0.03721492]
[1673114402213,2.3148709,16944.0,16943.0,0.03483839]
[1673114408880,2.30788937,16944.0,16943.0,0.03483839]
[1673114409388,2.91557437,16944.0,16943.0,0.03483839]
[1673114409636,2.92536924,16944.0,16943.0,0.03483839]
[1673114413459,2.32536924,16944.0,16943.0,0.03483839]
[1673114413711,1.71768424,16944.0,16943.0,0.03483839]
[1673114415286,1.12738556,16944.0,16943.0,0.03749135]
[1673114415525,1.12738556,16944.0,16943.0,0.03483839]
[1673114417331,1.12738556,16944.0,16943.0,0.52581539]
[1673114418022,1.12738556,16944.0,16943.0,0.03483839]
[1673114418519,1.12738556,16944.0,16943.0,0.52581539]
[1673114419025,1.12707372,16944.0,16943.0,0.03483839]
[1673114425105,1.12707372,16944.0,16943.0,0.03749135]
[1673114425357,1.12707372,16944.0,16943.0,0.52581539]
[1673114427005,1.12707372,16944.0,16943.0,0.03483839]
[1673114433437,1.11231045,16944.0,16943.0,0.03483839]
[1673114433946,1.70260913,16944.0,16943.0,0.03483839]
[1673114436039,1.11231045,16944.0,16943.0,0.03483839]
[1673114439986,1.71231045,16944.0,16943.0,0.03476555]
[1673114446225,1.11231045,16944.0,16943.0,0.03476555]
[1673114450012,1.11231045,16944.0,16943.0,0.03514203]
[1673114450483,1.11231045,16944.0,16943.0,0.03476555]
[1673114455555,1.11210211,16944.0,16943.0,0.03476555]
[1673114460943,1.11210211,16944.0,16943.0,0.03514203]
[1673114461191,1.11210211,16944.0,16943.0,0.03476555]
[1673114468265,1.70240079,16944.0,16943.0,0.03476555]
[1673114468508,1.71978711,16944.0,16943.0,0.03476555]
[1673114468743,1.70240079,16944.0,16943.0,0.03476555]
[1673114468985,1.11210211,16944.0,16943.0,0.03476555]
[1673114469943,2.31008579,16944.0,16943.0,0.03476555]
[1673114470485,1.70240079,16944.0,16943.0,0.03476555]
[1673114473254,2.31008579,16944.0,16943.0,0.03476555]
[1673114474906,1.70240079,16944.0,16943.0,0.03476555]
[1673114476927,1.70240079,16944.0,16943.0,0.03469987]
[1673114477727,1.11210211,16944.0,16943.0,0.03469987]
[1673114477975,2.30240079,16944.0,16943.0,0.03469987]
[1673114478471,2.91008579,16944.0,16943.0,0.03469987]
[1673114478770,2.30240079,16944.0,16943.0,0.03469987]
[1673114479532,2.91008579,16944.0,16943.0,0.03469987]
[1673114480215,2.30240079,16944.0,16943.0,0.03469987]
[1673114480467,2.91008579,16944.0,16943.0,0.03469987]
[1673114480982,2.30240079,16944.0,16943.0,0.03469987]
[1673114484434,2.30240079,16944.0,16943.0,0.03507635]
[1673114484695,1.11210211,16944.0,16943.0,0.03507635]
[1673114484981,1.11210211,16944.0,16943.0,0.03469987]
[1673114498861,1.71210211,16944.0,16943.0,0.03458993]
[1673114502568,2.31978711,16944.0,16943.0,0.03458993]
[1673114503376,1.71210211,16944.0,16943.0,0.03458993]
[1673114506192,2.31978711,16944.0,16943.0,0.03458993]
[1673114506733,1.71210211,16944.0,16943.0,0.03458993]
[1673114507259,2.31978711,16944.0,16943.0,0.03458993]
[1673114508501,1.71210211,16944.0,16943.0,0.03458993]
[1673114509506,1.11210211,16944.0,16943.0,0.03496641]
[1673114509756,1.11210211,16944.0,16943.0,0.03458993]
[1673114509976,1.11179073,16944.0,16943.0,0.03458993]
[1673114510485,1.11179073,16944.0,16943.0,0.03496641]
[1673114510738,1.11179073,16944.0,16943.0,0.03458993]
[1673114511690,1.71947573,16944.0,16943.0,0.03458993]
[1673114512580,1.11179073,16944.0,16943.0,0.03458993]
[1673114513651,1.11179073,16944.0,16943.0,0.03496641]
[1673114514147,1.11179073,16944.0,16943.0,0.03458993]
[1673114516385,1.71947573,16944.0,16943.0,0.03458993]
[1673114516888,2.30977441,16944.0,16943.0,0.03458993]
[1673114518886,1.70208941,16944.0,16943.0,0.03458993]
[1673114519885,2.30977441,16944.0,16943.0,0.03458993]
[1673114525790,2.30977441,16944.0,16943.0,0.03496641]
[1673114526035,2.30977441,16944.0,16943.0,0.03458993]
[1673114526278,1.70208941,16944.0,16943.0,0.03458993]
[1673114526528,2.30977441,16944.0,16943.0,0.03458993]
[1673114530559,2.30977441,16944.0,16943.0,0.03451614]
[1673114533497,1.70208941,16944.0,16943.0,0.03451614]
[1673114535582,1.70197169,16944.0,16943.0,0.03451614]
[1673114536133,2.30965669,16944.0,16943.0,0.03451614]
[1673114536377,1.70197169,16944.0,16943.0,0.03451614]
[1673114536651,1.71167301,16944.0,16943.0,0.03451614]
[1673114536901,2.30197169,16944.0,16943.0,0.03451614]
[1673114537165,1.71167301,16944.0,16943.0,0.03451614]
[1673114539710,2.30197169,16944.0,16943.0,0.03451614]
[1673114540429,2.90965669,16944.0,16943.0,0.03451614]
[1673114541568,2.30197169,16944.0,16943.0,0.03451614]
[1673114544054,1.71167301,16944.0,16943.0,0.03451614]
[1673114544841,2.30197169,16944.0,16943.0,0.03451614]
[1673114546857,2.90965669,16944.0,16943.0,0.03451614]
[1673114548240,2.30197169,16944.0,16943.0,0.03451614]
[1673114548982,1.71167301,16944.0,16943.0,0.03451614]
[1673114549284,2.30197169,16944.0,16943.0,0.03451614]
[1673114549524,2.90965669,16944.0,16943.0,0.03451614]
[1673114550849,2.30965669,16944.0,16943.0,0.03451614]
[1673114551098,1.70197169,16944.0,16943.0,0.03451614]
[1673114551902,1.11167301,16944.0,16943.0,0.03451614]
[1673114555216,1.70197169,16944.0,16943.0,0.03451614]
[1673114555476,1.11167301,16944.0,16943.0,0.03451614]
[1673114556521,1.70197169,16944.0,16943.0,0.03451614]
[1673114556821,2.30965669,16944.0,16943.0,0.03451614]
[1673114557294,2.30965669,16944.0,16943.0,0.03439936]
[1673114558210,1.70197169,16944.0,16943.0,0.03439936]
[1673114560201,2.30965669,16944.0,16943.0,0.03439936]
[1673114563301,1.70197169,16944.0,16943.0,0.03439936]
[1673114563807,2.30965669,16944.0,16943.0,0.03439936]
[1673114564834,1.70197169,16944.0,16943.0,0.03439936]
[1673114566344,1.11167301,16944.0,16943.0,0.03439936]
[1673114566595,1.71167301,16944.0,16943.0,0.03439936]
[1673114566841,2.30197169,16944.0,16943.0,0.03439936]
[1673114567720,1.71167301,16944.0,16943.0,0.03439936]
[1673114568494,2.31935801,16944.0,16943.0,0.03439936]
[1673114569008,2.90965669,16944.0,16943.0,0.03439936]
[1673114569279,2.30197169,16944.0,16943.0,0.03439936]
[1673114569768,1.71167301,16944.0,16943.0,0.03439936]
[1673114570273,1.11167301,16944.0,16943.0,0.03439936]
[1673114571579,1.70197169,16944.0,16943.0,0.03439936]
[1673114571855,1.11148465,16944.0,16943.0,0.03439936]
[1673114572618,1.71148465,16944.0,16943.0,0.03439936]
[1673114572865,2.30178333,16944.0,16943.0,0.03439936]
[1673114573641,2.90946833,16944.0,16943.0,0.03439936]
[1673114573899,2.30178333,16944.0,16943.0,0.03439936]
[1673114575037,2.30946833,16944.0,16943.0,0.03439936]
[1673114575292,1.70178333,16944.0,16943.0,0.03439936]
[1673114575809,1.11148465,16944.0,16943.0,0.03439936]
[1673114577369,1.70178333,16944.0,16943.0,0.03439936]
[1673114577649,2.30946833,16944.0,16943.0,0.03439936]
[1673114580963,1.70178333,16944.0,16943.0,0.03439936]
[1673114581724,2.30946833,16944.0,16943.0,0.03439936]
[1673114583320,1.70178333,16944.0,16943.0,0.03439936]
[1673114583568,1.77808883,16944.0,16943.0,0.03439936]
[1673114584964,1.17040383,16944.0,16943.0,0.03439936]
[1673114585181,1.70199809,16944.0,16943.0,0.03439936]
[1673114586450,2.30968309,16944.0,16943.0,0.03439936]
[1673114586694,1.70199809,16944.0,16943.0,0.03439936]
[1673114587704,2.30968309,16944.0,16943.0,0.03439936]
[1673114589728,1.70199809,16944.0,16943.0,0.03439936]
[1673114590479,2.30968309,16944.0,16943.0,0.03439936]
[1673114593192,1.70199809,16944.0,16943.0,0.03439936]
[1673114594444,2.30968309,16944.0,16943.0,0.03439936]
[1673114594933,1.70199809,16944.0,16943.0,0.03439936]
[1673114595437,1.70199809,16944.0,16943.0,0.03430334]
[1673114596653,2.30968309,16944.0,16943.0,0.03430334]
[1673114597157,1.70199809,16944.0,16943.0,0.03430334]
[1673114598525,1.70189816,16944.0,16943.0,0.03430334]
[1673114599570,1.71159948,16944.0,16943.0,0.03430334]
[1673114600630,2.90958316,16944.0,16943.0,0.03430334]
[1673114600890,2.90927212,16944.0,16943.0,0.03430334]
[1673114601862,2.30158712,16944.0,16943.0,0.03430334]
[1673114606095,2.31897344,16944.0,16943.0,0.03430334]
[1673114606352,1.71128844,16944.0,16943.0,0.03430334]
[1673114608735,1.11128844,16944.0,16943.0,0.03430334]
[1673114610891,0.55248066,16944.0,16943.0,0.03430334]
[1673114611143,0.55248066,16944.0,16943.0,0.71516894]
[1673114611403,0.55248066,16944.0,16943.0,1.20614594]
[1673114611664,0.0208864,16944.0,16943.0,1.20614594]
[1673114612395,0.0208864,16944.0,16943.0,0.71516894]
[1673114613418,0.0208864,16944.0,16943.0,1.20614594]
[1673114614199,0.0208864,16944.0,16943.0,0.71516894]
[1673114614456,0.0208864,16944.0,16943.0,0.71553294]
[1673114614973,0.0208864,16944.0,16943.0,1.20650994]
[1673114615499,0.0208864,16944.0,16943.0,0.71553294]
[1673114616772,0.0208864,16944.0,16943.0,0.71516894]
[1673114623484,0.65769017,16944.0,16943.0,0.71516894]
[1673114624509,1.25769017,16944.0,16943.0,0.71509158]
[1673114625042,0.65769017,16944.0,16943.0,0.71509158]
[1673114627579,1.10037971,16944.0,16943.0,0.71509158]
[1673114627844,0.65769017,16944.0,16943.0,0.71509158]
[1673114628573,1.10038234,16944.0,16943.0,0.71509158]
[1673114628831,0.65769017,16944.0,16943.0,0.71509158]
[1673114630625,1.10038085,16944.0,16943.0,0.71509158]
[1673114636264,1.10017268,16944.0,16943.0,0.71509158]
[1673114637455,1.10019387,16944.0,16943.0,0.71509158]
[1673114637706,0.657482,16944.0,16943.0,0.71509158]
[1673114638776,1.10019548,16944.0,16943.0,0.71509158]
[1673114639250,1.10019548,16944.0,16943.0,1.20606858]
[1673114639499,1.10019548,16944.0,16943.0,0.71509158]
[1673114641467,0.657482,16944.0,16943.0,0.71509158]
[1673114643457,0.657482,16944.0,16943.0,1.20606858]
[1673114645830,0.657482,16944.0,16943.0,0.71509158]
[1673114646091,0.657482,16944.0,16943.0,1.20606858]
[1673114646368,0.657482,16944.0,16943.0,0.71509158]
[1673114646602,0.657482,16944.0,16943.0,1.20606858]
[1673114648156,0.657482,16944.0,16943.0,0.71509158]
[1673114648399,0.657482,16944.0,16943.0,1.20606858]
[1673114649618,0.657482,16944.0,16943.0,0.71509158]
[1673114650344,0.657482,16944.0,16943.0,1.20606858]
[1673114656433,1.257482,16944.0,16943.0,1.20599997]
[1673114656756,0.657482,16944.0,16943.0,0.71502297]
[1673114657005,0.657482,16944.0,16943.0,1.20599997]
[1673114659232,0.657482,16944.0,16943.0,0.71502297]
[1673114659974,0.657482,16944.0,16943.0,0.03415737]
[1673114660482,0.657482,16944.0,16943.0,0.52513437]
[1673114662278,0.657482,16944.0,16943.0,0.03415737]
[1673114662533,0.657482,16944.0,16943.0,0.52513437]
[1673114662808,0.657482,16944.0,16943.0,0.03415737]
[1673114663056,0.657482,16944.0,16943.0,0.52513437]
[1673114663315,0.657482,16944.0,16943.0,0.03415737]
[1673114663824,0.657482,16944.0,16943.0,0.52513437]
[1673114665518,0.657482,16944.0,16943.0,0.03415737]
[1673114665765,0.657482,16944.0,16943.0,0.52513437]
[1673114666544,0.657482,16944.0,16943.0,0.03415737]
[1673114671271,0.657482,16944.0,16943.0,0.52513437]
[1673114671783,0.657482,16944.0,16943.0,0.03415737]
[1673114673766,0.657482,16944.0,16943.0,0.52513437]
[1673114674009,0.657482,16944.0,16943.0,0.03415737]
[1673114675024,0.657482,16944.0,16943.0,0.52513437]
[1673114675556,0.657482,16944.0,16943.0,0.03415737]
[1673114675825,0.657482,16944.0,16943.0,0.52513437]
[1673114676090,0.657482,16944.0,16943.0,0.03415737]
[1673114677891,1.257482,16944.0,16943.0,0.03405558]
[1673114679656,0.657482,16944.0,16943.0,0.03405558]
[1673114683470,0.657482,16944.0,16943.0,0.52503258]
[1673114683723,0.657482,16944.0,16943.0,0.03405558]
[1673114691538,0.65717153,16944.0,16943.0,0.03405558]
[1673114698805,0.65717153,16944.0,16943.0,0.52503258]
[1673114699295,0.65717153,16944.0,16943.0,0.03405558]
[1673114699539,0.65717153,16944.0,16943.0,0.52503258]
[1673114700813,0.65717153,16944.0,16943.0,0.03405558]
[1673114701122,0.65717153,16944.0,16943.0,0.52503258]
[1673114702388,0.65717153,16944.0,16943.0,0.03405558]
[1673114707333,0.65717153,16944.0,16943.0,0.52503258]
[1673114707586,0.65717153,16944.0,16943.0,0.03405558]
[1673114712490,0.65717153,16944.0,16943.0,0.0339752]
[1673114712774,1.25717153,16944.0,16943.0,0.03386194]
[1673114713274,1.86485653,16944.0,16943.0,0.03386194]
[1673114714239,2.39645079,16944.0,16943.0,0.03386194]
[1673114714485,1.86485653,16944.0,16943.0,0.03386194]
[1673114714733,2.39645079,16944.0,16943.0,0.03386194]
[1673114718211,1.79645079,16944.0,16943.0,0.03386194]
[1673114718454,1.18876579,16944.0,16943.0,0.03386194]
[1673114718971,0.65717153,16944.0,16943.0,0.03386194]
[1673114719445,1.26485653,16944.0,16943.0,0.03386194]
[1673114720743,1.79645079,16944.0,16943.0,0.03386194]
[1673114721484,1.18876579,16944.0,16943.0,0.03386194]
[1673114721739,0.65717153,16944.0,16943.0,0.03386194]
[1673114725042,1.26485653,16944.0,16943.0,0.03386194]
[1673114725759,1.79645079,16944.0,16943.0,0.03386194]
[1673114725970,1.26485653,16944.0,16943.0,0.03386194]
[1673114726225,1.79645079,16944.0,16943.0,0.03386194]
[1673114726754,1.26485653,16944.0,16943.0,0.03386194]
[1673114727209,2.38674947,16944.0,16943.0,0.03386194]
[1673114727493,1.79645079,16944.0,16943.0,0.03386194]
[1673114727999,1.18876579,16944.0,16943.0,0.03386194]
[1673114728230,1.79645079,16944.0,16943.0,0.03386194]
[1673114728508,1.18876579,16944.0,16943.0,0.03386194]
[1673114733533,1.18876579,16944.0,16943.0,0.07816993]
[1673114734680,1.78876579,16944.0,16943.0,0.07808964]
[1673114735209,1.25717153,16944.0,16943.0,0.07808964]
[1673114736210,1.78876579,16944.0,16943.0,0.07808964]
[1673114736466,2.39645079,16944.0,16943.0,0.07808964]
[1673114737466,1.78876579,16944.0,16943.0,0.07808964]
[1673114738717,1.25717153,16944.0,16943.0,0.07308964]
[1673114743220,1.78876579,16944.0,16943.0,0.07308964]
[1673114744074,1.25717153,16944.0,16943.0,0.07308964]
[1673114745916,0.65717153,16944.0,16943.0,0.07308964]
[1673114756232,1.10002729,16944.0,16943.0,0.07308964]
[1673114756486,1.10002361,16944.0,16943.0,0.07308964]
[1673114756736,1.10002365,16944.0,16943.0,0.07308964]
[1673114756985,1.10002364,16944.0,16943.0,0.07308964]
[1673114758759,0.65717153,16944.0,16943.0,0.07308964]
[1673114759019,1.10001046,16944.0,16943.0,0.07308964]
[1673114762147,1.10001046,16944.0,16943.0,1.18250131]
[1673114762484,1.10001046,16944.0,16943.0,0.69152431]
[1673114762708,1.10001046,16944.0,16943.0,0.69141593]
[1673114769055,1.45421029,16944.0,16943.0,0.69141593]
[1673114770568,1.45422117,16944.0,16943.0,0.69141593]
[1673114771314,1.4542137,16944.0,16943.0,0.69141593]
[1673114772155,1.4542137,16944.0,16943.0,1.18239293]
[1673114772391,1.4542137,16944.0,16943.0,0.69141593]
[1673114774348,1.10001046,16944.0,16943.0,0.69141593]
[1673114775343,1.45423084,16944.0,16943.0,1.18239293]
[1673114775596,1.45423099,16944.0,16943.0,0.69141593]
[1673114777074,1.45423099,16944.0,16943.0,1.77260693]
[1673114777075,0.81742722,16944.0,16943.0,1.77260693]
[1673114777339,0.64024871,16944.0,16943.0,1.77260693]
[1673114777905,0.64024871,16944.0,16943.0,1.28162993]
[1673114778384,0.81742722,16944.0,16943.0,1.28162993]
[1673114785023,0.81742722,16944.0,16943.0,1.28152173]
[1673114786004,0.81742722,16944.0,16943.0,1.77249873]
[1673114786514,0.81742722,16944.0,16943.0,1.28152173]
[1673114787010,0.81742722,16944.0,16943.0,1.77249873]
[1673114787264,1.08311121,16944.0,16943.0,1.77249873]
[1673114787552,0.81742722,16944.0,16943.0,1.28152173]
[1673114787769,1.08310978,16944.0,16943.0,1.28152173]
[1673114788050,0.64027103,16944.0,16943.0,1.28152173]
[1673114788296,1.08310996,16944.0,16943.0,1.77249873]
[1673114788559,0.64027103,16944.0,16943.0,1.28152173]
[1673114789061,0.64027103,16944.0,16943.0,1.77249873]
[1673114789333,0.64027103,16944.0,16943.0,1.28152173]
[1673114789798,1.08310996,16944.0,16943.0,1.28152173]
[1673114790664,0.64027103,16944.0,16943.0,1.28152173]
[1673114790919,0.81742722,16944.0,16943.0,1.28152173]
[1673114791178,0.81742722,16944.0,16943.0,1.77249873]
[1673114791427,1.08311338,16944.0,16943.0,1.77249873]
[1673114791694,0.81742722,16944.0,16943.0,1.28152173]
[1673114792197,1.08311334,16944.0,16943.0,1.28152173]
[1673114792462,1.08312075,16944.0,16943.0,1.28152173]
[1673114792710,1.08312075,16944.0,16943.0,1.77249873]
[1673114793223,1.08312075,16944.0,16943.0,1.28152173]
[1673114793477,0.64028182,16944.0,16943.0,1.28152173]
[1673114793737,0.64028182,16944.0,16943.0,1.77249873]
[1673114793984,0.64028182,16944.0,16943.0,1.28152173]
[1673114794535,0.64028182,16944.0,16943.0,1.77249873]
[1673114795000,0.64028182,16944.0,16943.0,1.28152173]
[1673114797809,1.08312075,16944.0,16943.0,1.28152173]
[1673114798092,0.64028182,16944.0,16943.0,1.28152173]
[1673114798833,1.08312075,16944.0,16943.0,1.28152173]
[1673114800602,0.64028182,16944.0,16943.0,1.77249873]
[1673114801117,0.64028182,16944.0,16943.0,1.28152173]
[1673114801907,0.64028182,16944.0,16943.0,1.77249873]
[1673114802415,0.64028182,16944.0,16943.0,1.28152173]
[1673114802919,0.64028182,16944.0,16943.0,1.77249873]
[1673114803437,0.64028182,16944.0,16943.0,1.28152173]
[1673114803963,0.64028182,16944.0,16943.0,1.77249873]
[1673114805505,0.64028182,16944.0,16943.0,1.77263753]
[1673114805761,0.64028182,16944.0,16943.0,1.77249873]
[1673114806285,0.64028182,16944.0,16943.0,1.28152173]
[1673114806793,0.64028182,16944.0,16943.0,1.28166053]
[1673114807300,0.64028182,16944.0,16943.0,1.28152173]
[1673114807788,0.64028182,16944.0,16943.0,1.77263753]